bitfinex-derivatives/quotes_SOLF0:USTF0_20241231
["timestamp","ask_amount","ask_price","bid_price","bid_amount"]
[1735640523395,12.84569412,193.75,193.67,2.5859]
[1735640523792,3.0,193.76,193.67,2.5859]
[1735640524495,12.84569412,193.78,193.65,12.84569412]
[1735640524704,12.84569412,193.78,193.7,2.5855]
[1735640524705,15.84569412,193.78,193.7,2.5855]
[1735640524894,12.84569412,193.81,193.7,2.5855]
[1735640525091,3.0,193.8,193.7,2.5855]
[1735640525391,12.84569412,193.81,193.7,2.5855]
[1735640525597,3.0,193.8,193.7,2.5855]
[1735640526290,12.84569412,193.81,193.68,15.84569412]
[1735640526291,12.84569412,193.81,193.72,2.5852]
[1735640527293,12.84569412,193.81,193.73,2.5851]
[1735640527493,3.0,193.82,193.73,2.5851]
[1735640527895,3.0,193.82,193.74,2.585]
[1735640528494,15.84569412,193.84,193.74,2.585]
[1735640529093,12.84569412,193.84,193.76,2.5847]
[1735640529294,12.84569412,193.87,193.74,12.84569412]
[1735640529600,3.0,193.86,193.74,12.84569412]
[1735640529794,15.84569412,193.87,193.78,2.5844]
[1735640530098,15.84569412,193.9,193.78,3.0]
[1735640530299,3.0,193.93,193.8,12.84569412]
[1735640530597,3.0,193.93,193.83,12.84569412]
[1735640530798,12.84569412,193.96,193.84,6.1055]
[1735640531499,12.84569412,193.96,193.84,8.6891]
[1735640532297,12.84569412,193.96,193.85,2.5835]
[1735640532491,12.84569412,193.96,193.84,6.1055]
[1735640532691,153.18446374,193.99,193.86,12.84569412]
[1735640532895,3.0,193.98,193.86,12.84569412]
[1735640533391,3.0,193.98,193.88,2.5831]
[1735640533597,53.74,194.06,193.89,3.0]
[1735640533894,12.84569412,194.01,193.89,15.84569412]
[1735640534101,3.0,194.0,193.89,15.84569412]
[1735640534798,3.0,194.0,193.89,18.42869412]
[1735640537794,3.0,194.0,193.89,15.84569412]
[1735640538800,3.0,194.0,193.89,18.42869412]
[1735640539499,3.0,194.0,193.9,2.5829]
[1735640539706,15.82569412,194.01,193.9,5.5629]
[1735640540901,15.82569412,194.01,193.9,2.98]
[1735640541705,12.84569412,194.01,193.9,2.98]
[1735640541907,12.84569412,194.04,193.92,12.84569412]
[1735640542212,15.53,194.21,193.95,12.84569412]
[1735640542213,53.7,194.21,193.95,12.84569412]
[1735640542505,12.84569412,194.09,193.96,2.98]
[1735640544005,12.84569412,194.09,193.98,2.5818]
[1735640544206,12.84569412,194.09,193.96,2.98]
[1735640544704,12.84569412,194.09,193.98,12.84569412]
[1735640545303,12.84569412,194.09,193.99,2.5816]
[1735640545505,12.84569412,194.09,193.98,12.84569412]
[1735640546309,12.84569412,194.09,194.0,2.5815]
[1735640546508,12.84569412,194.09,194.01,2.98]
[1735640546713,12.84569412,194.12,194.01,18.40709412]
[1735640547407,12.84569412,194.12,194.02,5.9418]
[1735640547609,12.77902132,194.12,194.02,5.9418]
[1735640548711,12.77902132,194.12,194.02,2.9618]
[1735640550308,12.84569412,194.09,193.95,2.5821]
[1735640550506,12.84569412,194.06,193.94,3.1803]
[1735640550711,2.98,194.05,193.94,3.1803]
[1735640551212,12.84569412,194.03,193.92,12.84569412]
[1735640551404,12.84569412,194.03,193.9,2.5827]
[1735640551805,12.84569412,194.03,193.89,15.82569412]
[1735640552011,12.84569412,194.03,193.91,2.5826]
[1735640554110,12.84569412,194.03,193.89,12.84569412]
[1735640554308,12.84569412,194.03,193.9,5.5628]
[1735640554511,12.84569412,194.03,193.9,2.98]
[1735640554910,12.84569412,194.03,193.92,12.84569412]
[1735640555107,12.84569412,194.06,193.92,12.84569412]
[1735640555306,2.98,194.05,193.92,12.84569412]
[1735640555718,2.98,194.05,193.96,2.582]
[1735640555920,2.98,194.05,193.95,15.82569412]
[1735640556115,2.98,194.05,193.96,4.7731]
[1735640557016,2.98,194.05,193.98,12.84569412]
[1735640557411,15.82569412,194.09,193.99,2.5815]
[1735640557817,15.82569412,194.09,193.98,12.84569412]
[1735640557818,2.98,194.09,193.98,12.84569412]
[1735640558119,2.98,194.09,194.0,2.5815]
[1735640559717,2.98,194.09,193.99,2.5816]
[1735640559913,2.98,194.09,193.98,12.84569412]
[1735640560821,2.98,194.09,194.0,2.5815]
[1735640561122,2.98,194.09,193.98,12.84569412]
[1735640561324,2.98,194.09,193.99,2.5816]
[1735640561715,2.98,194.09,193.98,12.84569412]
[1735640562320,15.82569412,194.09,193.98,12.84569412]
[1735640562919,15.82569412,194.09,194.01,12.84569412]
[1735640562920,2.98,194.09,194.01,12.84569412]
[1735640563421,2.98,194.09,194.01,15.42709412]
[1735640564121,2.98,194.09,194.02,2.5812]
[1735640564719,12.84569412,194.13,194.02,2.5812]
[1735640564919,2.98,194.12,194.01,12.84569412]
[1735640565121,2.98,194.12,194.01,15.42699412]
[1735640565318,2.98,194.12,194.01,12.84569412]
[1735640565518,2.98,194.12,194.0,2.98]
[1735640567323,2.98,194.14,194.04,12.84569412]
[1735640567721,12.84569412,194.17,194.04,15.42659412]
[1735640567931,2.98,194.16,194.04,12.84569412]
[1735640568317,2.98,194.16,194.04,15.42669412]
[1735640568524,12.84569412,194.2,194.04,12.84569412]
[1735640568824,2.98,194.19,194.07,2.5805]
[1735640569931,12.84569412,194.2,194.06,2.5807]
[1735640570117,2.98,194.19,194.06,2.5807]
[1735640570725,12.84569412,194.2,194.05,7.6545]
[1735640570924,12.84569412,194.16,194.05,7.6545]
[1735640572225,12.84569412,194.16,194.05,10.2354]
[1735640572630,12.84569412,194.16,194.05,4.6745]
[1735640573533,12.84569412,194.16,194.05,3.0993]
[1735640573731,12.84569412,194.13,194.01,12.84569412]
[1735640573927,2.98,194.12,194.01,12.84569412]
[1735640574132,2.98,194.12,194.0,7.572]
[1735640575130,2.98,194.12,194.0,10.1535]
[1735640575533,2.98,194.12,194.0,7.1735]
[1735640577836,12.84569412,194.1,194.0,3.0558]
[1735640580443,12.84569412,194.1,194.01,2.5814]
[1735640580644,12.84569412,194.1,194.0,3.0558]
[1735640580845,2.98,194.09,194.0,3.0558]
[1735640582156,2.98,194.09,194.0,5.6373]
[1735640582650,2.98,194.09,194.0,3.0558]
[1735640588357,2.98,194.09,194.0,1.4641]
[1735640590456,12.84569412,194.1,194.0,1.4641]
[1735640590651,2.98,194.09,194.0,4.0456]
[1735640591056,2.98,194.09,194.0,1.4641]
[1735640592052,12.84569412,194.1,194.0,1.4641]
[1735640592348,12.84569412,194.07,193.96,1.5484]
[1735640593051,12.84569412,194.04,193.92,1.4521]
[1735640593254,2.98,194.03,193.92,1.4521]
[1735640600256,2.98,194.03,193.92,4.0346]
[1735640602760,3.04,194.02,193.92,4.0346]
[1735640603658,3.04,194.02,193.92,1.4521]
[1735640605766,12.84569412,194.04,193.92,4.0346]
[1735640605960,3.04,194.01,193.92,4.0346]
[1735640606465,3.04,194.01,193.96,8.18141623]
[1735640606657,3.04,194.01,193.94,8.18141623]
[1735640609256,8.18141623,194.01,193.94,8.18141623]
[1735640609456,3.04,194.0,193.94,8.18141623]
[1735640611166,3.04,194.0,193.93,2.5824]
[1735640611362,3.04,194.0,193.94,8.18141623]
[1735640612562,8.18141623,194.01,193.94,8.18141623]
[1735640612763,3.04,194.0,193.94,8.18141623]
[1735640613367,3.04,194.0,193.94,10.76371623]
[1735640613569,3.04,194.0,193.94,8.18141623]
[1735640615565,8.18141623,193.99,193.92,9.63351623]
[1735640616065,8.18141623,193.99,193.86,60.0192906]
[1735640616368,8.18141623,193.97,193.9,8.18141623]
[1735640618366,8.18141623,193.99,193.9,10.76421623]
[1735640619571,8.18141623,193.97,193.9,10.76421623]
[1735640619869,8.18141623,193.97,193.9,8.18141623]
[1735640626970,3.02,193.97,193.92,8.18141623]
[1735640628577,3.02,193.97,193.9,8.18141623]
[1735640629483,8.18141623,193.96,193.9,8.18141623]
[1735640633478,8.18141623,193.96,193.87,2.9637]
[1735640633674,8.18141623,193.96,193.88,8.18141623]
[1735640633875,3.02,193.97,193.9,8.18141623]
[1735640634071,3.02,193.97,193.94,8.18141623]
[1735640634271,8.18141623,193.96,193.9,8.18141623]
[1735640635176,8.18141623,193.96,193.88,8.18141623]
[1735640635680,8.18141623,193.96,193.9,8.18141623]
[1735640637279,3.02,193.97,193.9,8.18141623]
[1735640637474,3.02,193.97,193.9,10.76421623]
[1735640639081,7.93277761,194.05,193.92,8.18141623]
[1735640639275,8.18141623,194.01,193.94,8.18141623]
[1735640640579,8.18141623,194.01,193.87,2.9637]
[1735640640580,8.18141623,193.99,193.92,8.18141623]
[1735640640782,8.18141623,193.97,193.9,8.18141623]
[1735640647885,8.18141623,193.97,193.88,8.18141623]
[1735640648791,8.18141623,193.97,193.9,8.18141623]
[1735640649880,7.93277761,194.06,193.87,2.9637]
[1735640650083,7.93277761,194.06,193.94,8.18141623]
[1735640650291,8.18141623,194.02,193.94,8.18141623]
[1735640650583,8.18141623,194.02,193.95,1.4974]
[1735640652089,8.18141623,194.0,193.95,1.4974]
[1735640652287,11.20141623,194.0,193.95,1.4974]
[1735640652693,11.20141623,194.0,193.94,1.4791]
[1735640653191,8.18141623,193.98,193.94,1.4791]
[1735640653385,11.20141623,194.0,193.94,1.4791]
[1735640655298,8.18141623,194.0,193.94,1.4791]
[1735640655492,3.02,193.99,193.94,1.4791]
[1735640656097,3.02,193.99,193.94,9.66051623]
[1735640656501,3.02,193.99,193.94,1.4791]
[1735640656902,3.02,193.99,193.94,9.66051623]
[1735640657109,3.02,193.98,193.94,1.4791]
[1735640661607,3.02,194.0,193.94,1.4791]
[1735640662202,8.18141623,194.03,193.95,8.18141623]
[1735640662413,3.02,194.03,193.97,8.18141623]
[1735640662897,8.18141623,194.05,193.97,8.18141623]
[1735640663207,118.91171452,194.07,193.99,8.18141623]
[1735640663405,3.02,194.06,193.99,8.18141623]
[1735640663907,8.18141623,194.07,193.99,8.18141623]
[1735640664099,3.02,194.06,193.99,8.18141623]
[1735640664302,3.02,194.06,194.0,1.4696]
[1735640664907,3.02,194.07,194.01,8.18141623]
[1735640665111,3.02,194.07,194.01,9.73401623]
[1735640670020,11.20141623,194.09,194.01,9.73401623]
[1735640670315,11.20141623,194.09,194.01,12.31531623]
[1735640670508,11.20141623,194.09,194.03,8.18141623]
[1735640673517,8.18141623,194.11,194.03,8.18141623]
[1735640673817,11.20141623,194.11,194.03,10.76251623]
[1735640674009,11.20141623,194.11,194.03,8.18141623]
[1735640676923,11.20141623,194.11,194.01,1.5526]
[1735640677218,8.18141623,194.07,194.01,1.5526]
[1735640677417,3.0,194.06,194.01,1.5526]
[1735640678814,3.0,194.06,194.01,9.73401623]
[1735640680119,3.0,194.06,194.01,12.31541623]
[1735640682010,3.0,194.06,194.01,9.73401623]
[1735640683120,3.0,194.06,194.01,12.31541623]
[1735640684716,8.18141623,194.1,194.03,2.581]
[1735640684919,3.0,194.1,194.03,8.18141623]
[1735640686017,3.0,194.1,194.05,2.5808]
[1735640686320,11.18141623,194.1,194.03,8.18141623]
[1735640686819,11.18141623,194.1,194.03,10.76241623]
[1735640687324,11.18141623,194.1,194.03,8.18141623]
[1735640687621,11.18141623,194.1,194.03,10.76251623]
[1735640687822,11.18141623,194.1,194.03,8.18141623]
[1735640688012,11.18141623,194.1,194.05,2.5809]
[1735640688523,3.0,194.1,194.05,2.5809]
[1735640688721,8.18141623,194.12,194.05,2.5809]
[1735640688918,3.0,194.13,194.07,8.18141623]
[1735640689122,65.47854931,194.15,194.07,8.18141623]
[1735640689324,68.47854931,194.15,194.07,8.18141623]
[1735640689625,65.47854931,194.15,194.07,8.18141623]
[1735640689925,68.47854931,194.15,194.08,1.5858]
[1735640690118,68.47854931,194.15,194.09,2.5802]
[1735640690623,65.47854931,194.15,194.09,2.5802]
[1735640690924,11.18141623,194.15,194.09,2.5802]
[1735640691324,8.18141623,194.13,194.08,1.5858]
[1735640693725,8.18141623,194.11,194.0,6.0458]
[1735640693928,8.18141623,194.11,194.04,8.18141623]
[1735640694926,8.18141623,194.11,194.04,10.76231623]
[1735640695826,8.18141623,194.13,194.06,8.18141623]
[1735640696921,8.18141623,194.13,194.06,10.76211623]
[1735640697823,8.18141623,194.13,194.06,8.18141623]
[1735640698025,8.18141623,194.13,194.07,2.5806]
[1735640698429,11.18141623,194.15,194.07,2.5806]
[1735640700327,3.0,194.15,194.09,2.5802]
[1735640700632,3.0,194.15,194.08,8.18141623]
[1735640701119,11.18141623,194.16,194.09,3.0535]
[1735640701519,11.18141623,194.16,194.1,2.5801]
[1735640702020,11.18141623,194.16,194.09,3.0535]
[1735640702225,11.18141623,194.16,194.09,5.6338]
[1735640704136,11.18141623,194.16,194.1,8.18141623]
[1735640705523,7.93779215,194.2,194.14,2.5796]
[1735640705723,8.18141623,194.19,194.12,8.18141623]
[1735640706830,8.18141623,194.19,194.12,10.76131623]
[1735640709729,8.18141623,194.19,194.12,2.5799]
[1735640709937,8.18141623,194.19,194.12,10.76131623]
[1735640712734,3.0,194.2,194.12,8.18141623]
[1735640712735,11.18141623,194.2,194.12,8.18141623]
[1735640713538,11.18141623,194.2,194.09,3.0535]
[1735640713539,7.93468014,194.23,194.14,8.18141623]
[1735640713734,3.0,194.22,194.16,8.18141623]
[1735640714343,11.18141623,194.22,194.16,8.18141623]
[1735640714737,8.18141623,194.2,194.11,3.0]
[1735640715038,8.18141623,194.2,194.14,8.18141623]
[1735640715643,8.18141623,194.2,194.12,8.18141623]
[1735640718437,8.18141623,194.2,194.12,10.76131623]
[1735640719542,8.18141623,194.2,194.14,8.18141623]
[1735640720249,3.0,194.22,194.16,8.18141623]
[1735640720844,3.0,194.22,194.17,2.5792]
[1735640721143,7.92648779,194.27,194.2,8.18141623]
[1735640721351,11.16141623,194.26,194.2,8.18141623]
[1735640722340,8.18141623,194.26,194.2,8.18141623]
[1735640722647,2.98,194.27,194.22,8.18141623]
[1735640722847,11.16141623,194.28,194.22,8.18141623]
[1735640723348,8.18141623,194.28,194.22,10.76001623]
[1735640723742,2.98,194.29,194.22,10.76001623]
[1735640724642,2.98,194.29,194.24,8.18141623]
[1735640725048,8.18141623,194.3,194.23,2.5784]
[1735640725241,8.18141623,194.3,194.24,8.18141623]
[1735640726350,2.98,194.31,194.24,10.75971623]
[1735640726541,68.41006383,194.32,194.24,10.75971623]
[1735640727649,65.43006383,194.32,194.26,8.18141623]
[1735640727849,8.18141623,194.32,194.26,8.18141623]
[1735640728048,8.18141623,194.34,194.26,8.18141623]
[1735640728446,8.18141623,194.34,194.26,10.75941623]
[1735640729252,2.98,194.36,194.29,2.5776]
[1735640729446,53.62,194.4,194.28,8.18141623]
[1735640729654,8.18141623,194.37,194.3,8.18141623]
[1735640729946,8.18141623,194.37,194.3,10.75891623]
[1735640730347,8.18141623,194.37,194.28,8.18141623]
[1735640730549,8.18141623,194.35,194.25,2.98]
[1735640730749,8.18141623,194.35,194.28,8.18141623]
[1735640736455,2.98,194.39,194.3,8.18141623]
[1735640736859,8.18141623,194.38,194.3,8.18141623]
[1735640737260,11.16141623,194.38,194.3,8.18141623]
[1735640738064,11.16141623,194.38,194.3,10.75891623]
[1735640738959,11.16141623,194.38,194.3,8.18141623]
[1735640742566,11.16141623,194.38,194.27,1.6014]
[1735640742567,8.18141623,194.34,194.27,1.6014]
[1735640742769,8.18141623,194.34,194.27,9.78281623]
[1735640742971,2.98,194.33,194.27,9.78281623]
[1735640743168,8.18141623,194.32,194.27,9.78281623]
[1735640743767,8.18141623,194.32,194.27,1.6014]
[1735640744065,8.18141623,194.32,194.23,2.5784]
[1735640744066,8.18141623,194.3,194.23,8.18141623]
[1735640744267,8.18141623,194.28,194.21,8.18141623]
[1735640744465,2.98,194.27,194.21,8.18141623]
[1735640745272,2.98,194.27,194.21,10.76011623]
[1735640745671,2.98,194.27,194.21,8.18141623]
[1735640748378,7.87038617,194.41,194.23,8.18141623]
[1735640748568,2.98,194.4,194.23,8.18141623]
[1735640748769,8.18141623,194.31,194.23,8.18141623]
[1735640748970,2.98,194.3,194.23,8.18141623]
[1735640750470,2.98,194.31,194.25,10.75961623]
[1735640750770,2.98,194.31,194.25,8.18141623]
[1735640751478,11.16141623,194.31,194.25,8.18141623]
[1735640751674,11.16141623,194.31,194.23,8.18141623]
[1735640752269,8.18141623,194.29,194.21,8.18141623]
[1735640752477,8.18141623,194.27,194.19,8.18141623]
[1735640752667,2.98,194.26,194.19,8.18141623]
[1735640752867,2.98,194.26,194.17,2.5792]
[1735640753177,2.98,194.26,194.19,8.18141623]
[1735640754376,2.98,194.26,194.21,8.18141623]
[1735640755376,2.98,194.26,194.2,2.5788]
[1735640755577,2.98,194.26,194.21,8.18141623]
[1735640758072,2.98,194.26,194.21,10.76021623]
[1735640758877,2.98,194.26,194.16,3.1335]
[1735640759180,8.18141623,194.25,194.18,8.18141623]
[1735640759569,2.98,194.26,194.18,10.76051623]
[1735640760674,8.18141623,194.25,194.18,8.18141623]
[1735640761677,2.98,194.26,194.22,8.18141623]
[1735640761978,8.18141623,194.24,194.18,8.18141623]
[1735640762787,8.18141623,194.24,194.16,11.31491623]
[1735640763983,8.18141623,194.22,194.16,11.31491623]
[1735640764175,2.98,194.21,194.16,11.31491623]
[1735640766079,7.88891751,194.33,194.18,8.18141623]
[1735640766278,8.18141623,194.28,194.2,8.18141623]
[1735640766480,2.98,194.27,194.2,8.18141623]
[1735640766782,8.18141623,194.28,194.2,8.18141623]
[1735640766981,2.98,194.26,194.22,8.18141623]
[1735640767182,2.98,194.26,194.2,8.18141623]
[1735640769386,2.98,194.29,194.24,8.18141623]
[1735640773882,8.18141623,194.32,194.24,8.18141623]
[1735640774192,8.18141623,194.3,194.23,1.5477]
[1735640775290,2.98,194.31,194.23,1.5477]
[1735640775592,8.18141623,194.3,194.23,1.5477]
[1735640776194,2.98,194.31,194.23,1.5477]
[1735640776390,8.18141623,194.3,194.23,1.5477]
[1735640777794,8.18141623,194.28,194.23,1.5477]
[1735640778093,8.18141623,194.26,194.19,8.18141623]
[1735640778395,11.20141623,194.26,194.19,8.18141623]
[1735640779195,11.20141623,194.26,194.19,10.76041623]
[1735640779597,11.20141623,194.26,194.17,1.5035]
[1735640779598,3.02,194.26,194.21,8.18141623]
[1735640784002,3.02,194.26,194.19,10.76031623]
[1735640784597,3.02,194.26,194.19,8.18141623]
[1735640784902,11.20141623,194.26,194.19,8.18141623]
[1735640785697,11.20141623,194.26,194.17,1.5035]
[1735640785906,8.18141623,194.22,194.17,1.5035]
[1735640786100,3.02,194.21,194.17,1.5035]
[1735640788700,3.02,194.21,194.17,12.26411623]
[1735640788899,3.02,194.23,194.17,9.68491623]
[1735640789605,3.02,194.23,194.17,12.26421623]
[1735640791610,8.18141623,194.26,194.19,8.18141623]
[1735640791804,3.02,194.25,194.19,8.18141623]
[1735640792912,8.18141623,194.26,194.19,8.18141623]
[1735640793207,3.02,194.25,194.19,8.18141623]
[1735640794213,3.02,194.25,194.18,2.5791]
[1735640795313,11.20141623,194.25,194.18,2.5791]
[1735640799118,3.02,194.25,194.18,2.5791]
[1735640799921,3.02,194.25,194.19,8.18141623]
[1735640801319,3.02,194.25,194.2,2.5789]
[1735640801718,3.02,194.25,194.19,8.18141623]
[1735640802117,3.02,194.26,194.19,10.76031623]
[1735640802813,3.02,194.27,194.21,8.18141623]
[1735640803516,3.02,194.27,194.21,10.76011623]
[1735640805544,3.02,194.27,194.21,8.18141623]
[1735640805752,3.02,194.27,194.19,8.18141623]
[1735640805961,8.18141623,194.26,194.19,8.18141623]
[1735640807948,8.18141623,194.26,194.17,9.68491623]
[1735640808555,8.18141623,194.26,194.18,2.579]
[1735640809961,8.18141623,194.26,194.17,9.68491623]
[1735640809962,8.18141623,194.26,194.17,12.26421623]
[1735640811048,8.18141623,194.26,194.17,9.68491623]
[1735640811246,8.18141623,194.26,194.18,2.5792]
[1735640811440,8.18141623,194.26,194.17,9.68491623]
[1735640812436,8.18141623,194.24,194.17,1.5035]
[1735640814126,8.18141623,194.26,194.18,10.76041623]
[1735640814324,3.0,194.25,194.18,10.76041623]
[1735640817136,3.0,194.25,194.18,8.18141623]
[1735640817331,3.0,194.25,194.19,2.579]
[1735640817733,7.93306939,194.33,194.2,8.18141623]
[1735640818033,8.18141623,194.29,194.22,2.5786]
[1735640818936,3.0,194.28,194.22,2.5786]
[1735640819738,3.0,194.28,194.2,8.18141623]
[1735640819939,3.0,194.28,194.21,2.5787]
[1735640820238,8.18141623,194.27,194.21,2.5787]
[1735640823442,8.18141623,194.27,194.2,8.18141623]
[1735640823740,8.18141623,194.27,194.22,2.5785]
[1735640825438,11.18141623,194.28,194.22,2.5785]
[1735640826636,8.18141623,194.26,194.17,1.5035]
[1735640826834,8.18141623,194.26,194.18,8.18141623]
[1735640827042,8.18141623,194.26,194.19,2.5789]
[1735640828746,8.18141623,194.26,194.18,8.18141623]
[1735640828947,8.18141623,194.26,194.2,8.18141623]
[1735640829249,11.18141623,194.28,194.2,8.18141623]
[1735640829546,11.18141623,194.28,194.22,2.5786]
[1735640829746,11.18141623,194.28,194.2,8.18141623]
[1735640830247,11.18141623,194.28,194.22,2.5785]
[1735640830447,8.18141623,194.28,194.22,2.5785]
[1735640830744,11.18141623,194.28,194.22,2.5785]
[1735640831541,8.18141623,194.23,194.17,1.5035]
[1735640831743,8.18141623,194.23,194.18,4.52952115]
[1735640831943,8.18141623,194.23,194.17,1.5035]
[1735640832148,8.18141623,194.23,194.18,4.52953495]
[1735640832350,8.18141623,194.23,194.17,1.5035]
[1735640832558,8.18141623,194.25,194.19,2.5789]
[1735640833049,8.18141623,194.27,194.22,2.5786]
[1735640833251,8.18141623,194.26,194.19,8.18141623]
[1735640833646,8.18141623,194.26,194.21,2.5787]
[1735640834948,8.18141623,194.26,194.2,2.5788]
[1735640836754,8.18141623,194.26,194.19,10.76041623]
[1735640839059,8.18141623,194.22,194.17,1.5035]
[1735640839259,8.18141623,194.22,194.17,4.0827]
[1735640839555,7.93306939,194.33,194.19,8.18141623]
[1735640839749,8.18141623,194.26,194.21,2.5787]
[1735640839944,8.18141623,194.26,194.19,8.18141623]
[1735640839945,11.16141623,194.26,194.19,8.18141623]
[1735640840556,11.16141623,194.26,194.17,9.68491623]
[1735640840857,2.98,194.26,194.18,8.50650881]
[1735640841062,8.18141623,194.25,194.17,9.68491623]
[1735640841357,8.18141623,194.25,194.18,8.50743041]
[1735640841555,8.18141623,194.25,194.17,9.68491623]
[1735640841751,8.18141623,194.25,194.18,8.50766283]
[1735640841951,8.18141623,194.25,194.19,2.5789]
[1735640842148,7.93306939,194.34,194.17,9.68491623]
[1735640842356,8.18141623,194.25,194.17,9.68491623]
[1735640842651,11.16141623,194.25,194.18,8.50659316]
[1735640842857,11.16141623,194.25,194.17,9.68491623]
[1735640843055,11.16141623,194.25,194.18,8.50686307]
[1735640843256,11.16141623,194.25,194.17,9.68491623]
[1735640843456,11.16141623,194.25,194.2,2.5789]
[1735640844560,11.16141623,194.25,194.19,2.579]
[1735640845860,11.16141623,194.25,194.2,2.5788]
[1735640847762,11.16141623,194.25,194.17,9.68491623]
[1735640847962,11.16141623,194.25,194.18,4.53016765]
[1735640848156,2.98,194.25,194.19,2.5789]
[1735640848664,2.98,194.25,194.17,9.68491623]
[1735640848864,2.98,194.25,194.2,2.5789]
[1735640852365,2.98,194.25,194.19,2.579]
[1735640855571,2.98,194.25,194.18,8.18141623]
[1735640855866,2.98,194.25,194.2,2.5788]
[1735640856271,7.93306939,194.32,194.2,8.18141623]
[1735640856569,8.18141623,194.31,194.22,8.18141623]
[1735640856768,2.98,194.3,194.22,8.18141623]
[1735640856959,11.16141623,194.3,194.24,8.18141623]
[1735640857364,2.98,194.3,194.25,2.5781]
[1735640858161,2.98,194.3,194.24,8.18141623]
[1735640859468,8.18141623,194.29,194.22,8.18141623]
[1735640859873,8.18141623,194.29,194.23,2.5784]
[1735640863275,8.18141623,194.29,194.24,2.5783]
[1735640863474,2.98,194.3,194.24,8.18141623]
[1735640863773,2.98,194.31,194.24,8.18141623]
[1735640864773,2.98,194.31,194.26,2.5781]
[1735640865177,2.98,194.31,194.24,8.18141623]
[1735640866275,8.18141623,194.32,194.25,2.5781]
[1735640866474,8.18141623,194.32,194.24,8.18141623]
[1735640866475,11.16141623,194.32,194.26,8.18141623]
[1735640866776,11.16141623,194.32,194.21,2.94]
[1735640866967,11.16141623,194.32,194.25,8.18141623]
[1735640867671,11.16141623,194.32,194.25,10.75951623]
[1735640867672,8.18141623,194.31,194.25,10.75951623]
[1735640869778,8.18141623,194.31,194.25,8.18141623]
[1735640870084,8.18141623,194.31,194.26,2.578]
[1735640872580,53.6,194.37,194.3,2.5775]
[1735640872777,8.18141623,194.35,194.3,2.5775]
[1735640873079,57.23035749,194.38,194.3,2.5775]
[1735640873276,2.94,194.35,194.31,2.5774]
[1735640873582,2.94,194.35,194.29,8.18141623]
[1735640873783,2.94,194.35,194.29,10.75901623]
[1735640874877,2.94,194.35,194.29,8.18141623]
[1735640875079,11.12141623,194.35,194.3,2.5775]
[1735640876980,11.12141623,194.35,194.29,2.5776]
[1735640877180,8.18141623,194.33,194.24,1.5833]
[1735640877383,8.18141623,194.33,194.26,8.18141623]
[1735640877681,8.18141623,194.33,194.28,2.5777]
[1735640878282,8.18141623,194.33,194.29,2.5776]
[1735640882882,2.94,194.34,194.29,2.5776]
[1735640885585,2.94,194.34,194.3,2.5775]
[1735640885883,8.18141623,194.35,194.3,2.5775]
[1735640886182,11.12141623,194.35,194.3,2.5775]
[1735640886586,11.12141623,194.35,194.31,2.5773]
[1735640886885,2.94,194.36,194.3,8.18141623]
[1735640887074,11.12141623,194.37,194.3,8.18141623]
[1735640887483,11.12141623,194.37,194.32,2.5772]
[1735640887684,7.934062,194.44,194.32,8.18141623]
[1735640887983,8.18141623,194.39,194.32,8.18141623]
[1735640888283,8.18141623,194.37,194.33,2.5771]
[1735640890086,8.18141623,194.37,194.28,1.6104]
[1735640890288,8.18141623,194.37,194.29,8.18141623]
[1735640891283,8.18141623,194.37,194.3,2.5775]
[1735640892386,8.18141623,194.35,194.3,2.5775]
[1735640894990,2.94,194.38,194.29,8.18141623]
[1735640895191,8.18141623,194.37,194.32,2.5772]
[1735640896885,8.18141623,194.37,194.31,8.18141623]
[1735640897092,8.18141623,194.37,194.31,10.75881623]
[1735640901295,7.93038806,194.43,194.31,8.18141623]
[1735640901503,8.18141623,194.4,194.33,8.18141623]
[1735640901696,8.18141623,194.38,194.32,3.0526]
[1735640902497,11.12141623,194.4,194.34,2.577]
[1735640903903,2.94,194.4,194.34,2.577]
[1735640904200,8.18141623,194.38,194.32,11.23401623]
[1735640904506,11.12141623,194.4,194.32,11.23401623]
[1735640904908,8.18141623,194.38,194.32,11.23401623]